[Event "Titled Tuesday Blitz October 19 2021"]
[White "Paltrinieri, Nicholas"]
[Black "Nakamura, Hikaru"]
[WhiteFideId "828262"]
[BlackFideId "2016192"]
[WhiteElo "2254"]
[BlackElo "2884"]
[Result "0-1"]
[Round "02"]
[TimeControl "180+1"]
[Date "2021.10.19"]
[WhiteClock "0:01:02"]
[BlackClock "0:02:11"]

1. f4 {[%clk 0:02:59]}  d5 {[%clk 0:02:59]} 2. Nf3 {[%clk 0:03:00]}  g6 {[%clk 0:02:58]} 3. e3 {[%clk 0:02:56]}  Bg7 {[%clk 0:02:58]} 4. Be2 {[%clk 0:02:56]}  c5 {[%clk 0:02:58]} 5. d4 {[%clk 0:02:55]}  Nc6 {[%clk 0:02:55]} 6. c3 {[%clk 0:02:53]}  Nh6 {[%clk 0:02:54]} 7. Nbd2 {[%clk 0:02:52]}  Nf5 {[%clk 0:02:54]} 8. Nf1 {[%clk 0:02:52]}  Qb6 {[%clk 0:02:50]} 9. g4 {[%clk 0:02:45]}  Nd6 {[%clk 0:02:49]} 10. Ne5 {[%clk 0:02:45]}  f6 {[%clk 0:02:45]} 11. Nxc6 {[%clk 0:02:44]}  bxc6 {[%clk 0:02:46]} 12. Ng3 {[%clk 0:02:44]}  cxd4 {[%clk 0:02:40]} 13. exd4 {[%clk 0:02:44]}  c5 {[%clk 0:02:40]} 14. Be3 {[%clk 0:02:21]}  c4 {[%clk 0:02:28]} 15. Qd2 {[%clk 0:02:16]}  f5 {[%clk 0:02:28]} 16. g5 {[%clk 0:02:11]}  Rb8 {[%clk 0:02:27]} 17. O-O-O {[%clk 0:01:50]}  Qa5 {[%clk 0:02:26]} 18. Kb1 {[%clk 0:01:49]}  Bd7 {[%clk 0:02:23]} 19. h4 {[%clk 0:01:38]}  Nb5 {[%clk 0:02:13]} 20. Ka1 {[%clk 0:01:31]}  Rb6 {[%clk 0:02:13]} 21. Rb1 {[%clk 0:01:02]}  Qxa2+ {[%clk 0:02:11]} 0-1


[Site "https://www.chess.com"]

[Event "Titled Tuesday Blitz October 19 2021"]
[White "Rzayev, Bahruz"]
[Black "Svane, Rasmus"]
[WhiteFideId "13403036"]
[BlackFideId "4657101"]
[WhiteElo "2331"]
[BlackElo "2643"]
[Result "0-1"]
[Round "02"]
[TimeControl "180+1"]
[Date "2021.10.19"]
[WhiteClock "0:00:09"]
[BlackClock "0:01:09"]

1. e4 {[%clk 0:02:28]}  c6 {[%clk 0:02:59]} 2. Nc3 {[%clk 0:02:27]}  d5 {[%clk 0:02:59]} 3. Nf3 {[%clk 0:02:26]}  dxe4 {[%clk 0:03:00]} 4. Nxe4 {[%clk 0:02:25]}  Nf6 {[%clk 0:03:01]} 5. Nxf6+ {[%clk 0:02:24]}  exf6 {[%clk 0:03:01]} 6. d4 {[%clk 0:02:01]}  Bd6 {[%clk 0:03:02]} 7. Bd3 {[%clk 0:02:01]}  O-O {[%clk 0:03:03]} 8. Be3 {[%clk 0:02:00]}  Re8 {[%clk 0:03:04]} 9. Qd2 {[%clk 0:02:00]}  Nd7 {[%clk 0:03:05]} 10. O-O-O {[%clk 0:02:00]}  Nf8 {[%clk 0:02:57]} 11. Kb1 {[%clk 0:01:53]}  Be6 {[%clk 0:02:57]} 12. c4 {[%clk 0:01:50]}  a6 {[%clk 0:02:51]} 13. h4 {[%clk 0:01:49]}  b5 {[%clk 0:02:51]} 14. c5 {[%clk 0:01:49]}  Bc7 {[%clk 0:02:50]} 15. h5 {[%clk 0:01:46]}  a5 {[%clk 0:02:48]} 16. h6 {[%clk 0:01:45]}  g6 {[%clk 0:02:48]} 17. Bf4 {[%clk 0:01:44]}  Bxf4 {[%clk 0:02:46]} 18. Qxf4 {[%clk 0:01:44]}  Bd5 {[%clk 0:02:29]} 19. Rhe1 {[%clk 0:01:23]}  Ne6 {[%clk 0:02:29]} 20. Qg4 {[%clk 0:01:13]}  a4 {[%clk 0:02:23]} 21. Be4 {[%clk 0:01:07]}  a3 {[%clk 0:02:13]} 22. b3 {[%clk 0:01:05]}  Qa5 {[%clk 0:02:06]} 23. Bxd5 {[%clk 0:00:51]}  cxd5 {[%clk 0:01:59]} 24. Kc2 {[%clk 0:00:37]}  Qb4 {[%clk 0:01:54]} 25. Qh4 {[%clk 0:00:32]}  g5 {[%clk 0:01:38]} 26. Qh3 {[%clk 0:00:23]}  Nxc5 {[%clk 0:01:34]} 27. dxc5 {[%clk 0:00:20]}  Qxc5+ {[%clk 0:01:35]} 28. Kd3 {[%clk 0:00:16]}  Qxf2 {[%clk 0:01:08]} 29. Rxe8+ {[%clk 0:00:09]}  Rxe8 {[%clk 0:01:09]} 0-1


[Site "https://www.chess.com"]

[Event "Titled Tuesday Blitz October 19 2021"]
[White "Sanal, Vahap"]
[Black "Hjartarson, Johann"]
[WhiteFideId "6300545"]
[BlackFideId "2300044"]
[WhiteElo "2492"]
[BlackElo "2502"]
[Result "1-0"]
[Round "02"]
[TimeControl "180+1"]
[Date "2021.10.19"]
[WhiteClock "0:01:20"]
[BlackClock "0:00:16"]

1. e4 {[%clk 0:03:00]}  Nf6 {[%clk 0:02:59]} 2. e5 {[%clk 0:02:54]}  Nd5 {[%clk 0:02:59]} 3. d4 {[%clk 0:02:54]}  d6 {[%clk 0:03:00]} 4. Nf3 {[%clk 0:02:54]}  Bg4 {[%clk 0:02:59]} 5. Be2 {[%clk 0:02:55]}  e6 {[%clk 0:02:58]} 6. O-O {[%clk 0:02:54]}  Be7 {[%clk 0:02:58]} 7. exd6 {[%clk 0:02:51]}  cxd6 {[%clk 0:02:57]} 8. c4 {[%clk 0:02:52]}  Nb6 {[%clk 0:02:57]} 9. b3 {[%clk 0:02:52]}  O-O {[%clk 0:02:56]} 10. h3 {[%clk 0:02:51]}  Bxf3 {[%clk 0:02:52]} 11. Bxf3 {[%clk 0:02:51]}  Nc6 {[%clk 0:02:50]} 12. Nc3 {[%clk 0:02:50]}  Bf6 {[%clk 0:02:43]} 13. Be3 {[%clk 0:02:49]}  d5 {[%clk 0:02:42]} 14. cxd5 {[%clk 0:02:45]}  Nxd5 {[%clk 0:02:42]} 15. Nxd5 {[%clk 0:02:45]}  exd5 {[%clk 0:02:42]} 16. Qd3 {[%clk 0:02:44]}  Qd6 {[%clk 0:02:40]} 17. Rad1 {[%clk 0:02:43]}  Rfd8 {[%clk 0:02:35]} 18. g3 {[%clk 0:02:42]}  g6 {[%clk 0:02:33]} 19. h4 {[%clk 0:02:42]}  Rac8 {[%clk 0:02:29]} 20. Rd2 {[%clk 0:02:34]}  Nb4 {[%clk 0:02:25]} 21. Qb1 {[%clk 0:02:30]}  a5 {[%clk 0:02:19]} 22. Kg2 {[%clk 0:02:28]}  Rc3 {[%clk 0:02:16]} 23. Re2 {[%clk 0:02:25]}  Rdc8 {[%clk 0:02:13]} 24. Bd2 {[%clk 0:02:20]}  R3c6 {[%clk 0:01:55]} 25. Bg4 {[%clk 0:02:17]}  Ra8 {[%clk 0:01:46]} 26. Bf4 {[%clk 0:02:13]}  Qf8 {[%clk 0:01:38]} 27. Rfe1 {[%clk 0:02:11]}  Rd8 {[%clk 0:01:23]} 28. a3 {[%clk 0:01:59]}  Na6 {[%clk 0:01:19]} 29. Qd3 {[%clk 0:01:53]}  Nc7 {[%clk 0:01:13]} 30. h5 {[%clk 0:01:41]}  Re8 {[%clk 0:00:44]} 31. Rxe8 {[%clk 0:01:36]}  Nxe8 {[%clk 0:00:43]} 32. Bd7 {[%clk 0:01:36]}  Nd6 {[%clk 0:00:38]} 33. Bxc6 {[%clk 0:01:35]}  bxc6 {[%clk 0:00:38]} 34. Bxd6 {[%clk 0:01:30]}  Qxd6 {[%clk 0:00:37]} 35. h6 {[%clk 0:01:31]}  Be7 {[%clk 0:00:33]} 36. Qa6 {[%clk 0:01:29]}  Bf8 {[%clk 0:00:28]} 37. Re8 {[%clk 0:01:27]}  Qxa3 {[%clk 0:00:16]} 38. Qxc6 {[%clk 0:01:23]}  Qxb3 {[%clk 0:00:16]} 39. Qd6 {[%clk 0:01:20]} 1-0


[Site "https://www.chess.com"]

[Event "Titled Tuesday Blitz October 19 2021"]
[White "Svidler, Peter"]
[Black "King, Alexander"]
[WhiteFideId "4102142"]
[BlackFideId "2063620"]
[WhiteElo "2709"]
[BlackElo "2306"]
[Result "1-0"]
[Round "02"]
[TimeControl "180+1"]
[Date "2021.10.19"]
[WhiteClock "0:00:14"]
[BlackClock "0:00:01"]

1. e4 {[%clk 0:03:00]}  e5 {[%clk 0:03:00]} 2. Nf3 {[%clk 0:03:00]}  Nc6 {[%clk 0:03:00]} 3. Bb5 {[%clk 0:03:00]}  Nf6 {[%clk 0:03:01]} 4. d3 {[%clk 0:02:59]}  Bc5 {[%clk 0:03:01]} 5. c3 {[%clk 0:02:59]}  O-O {[%clk 0:03:01]} 6. O-O {[%clk 0:03:00]}  Re8 {[%clk 0:03:02]} 7. Nbd2 {[%clk 0:02:56]}  a6 {[%clk 0:03:02]} 8. Ba4 {[%clk 0:02:55]}  b5 {[%clk 0:03:02]} 9. Bb3 {[%clk 0:02:55]}  d6 {[%clk 0:03:00]} 10. Re1 {[%clk 0:02:47]}  h6 {[%clk 0:02:59]} 11. Nf1 {[%clk 0:02:46]}  Bb6 {[%clk 0:03:00]} 12. Ng3 {[%clk 0:02:43]}  Be6 {[%clk 0:02:57]} 13. Bc2 {[%clk 0:02:41]}  d5 {[%clk 0:02:57]} 14. exd5 {[%clk 0:02:32]}  Qxd5 {[%clk 0:02:57]} 15. h3 {[%clk 0:02:29]}  Rad8 {[%clk 0:02:58]} 16. Be3 {[%clk 0:02:29]}  Bxe3 {[%clk 0:02:53]} 17. Rxe3 {[%clk 0:02:29]}  Qd6 {[%clk 0:02:38]} 18. Re1 {[%clk 0:02:02]}  Nd5 {[%clk 0:02:19]} 19. d4 {[%clk 0:01:55]}  exd4 {[%clk 0:02:16]} 20. cxd4 {[%clk 0:01:28]}  Nf6 {[%clk 0:02:09]} 21. Nf5 {[%clk 0:00:55]}  Bxf5 {[%clk 0:02:04]} 22. Rxe8+ {[%clk 0:00:53]}  Nxe8 {[%clk 0:02:00]} 23. Bxf5 {[%clk 0:00:53]}  Nxd4 {[%clk 0:02:01]} 24. Nxd4 {[%clk 0:00:53]}  Qxd4 {[%clk 0:02:01]} 25. Qxd4 {[%clk 0:00:49]}  Rxd4 {[%clk 0:02:02]} 26. Rc1 {[%clk 0:00:49]}  g6 {[%clk 0:02:00]} 27. Bc8 {[%clk 0:00:49]}  Rd2 {[%clk 0:01:47]} 28. Bxa6 {[%clk 0:00:43]}  Rxb2 {[%clk 0:01:47]} 29. Rc5 {[%clk 0:00:43]}  Nd6 {[%clk 0:01:38]} 30. Rxc7 {[%clk 0:00:43]}  Rxa2 {[%clk 0:01:38]} 31. Rc6 {[%clk 0:00:43]}  Ne4 {[%clk 0:01:19]} 32. Bxb5 {[%clk 0:00:43]}  Ra1+ {[%clk 0:00:52]} 33. Kh2 {[%clk 0:00:42]}  Nxf2 {[%clk 0:00:52]} 34. Bc4 {[%clk 0:00:42]}  Rh1+ {[%clk 0:00:42]} 35. Kg3 {[%clk 0:00:42]}  Ne4+ {[%clk 0:00:43]} 36. Kf4 {[%clk 0:00:41]}  Ng5 {[%clk 0:00:18]} 37. Rxg6+ {[%clk 0:00:41]}  Kh7 {[%clk 0:00:18]} 38. Rc6 {[%clk 0:00:41]}  Kg7 {[%clk 0:00:13]} 39. Kg4 {[%clk 0:00:39]}  Rd1 {[%clk 0:00:09]} 40. Rc7 {[%clk 0:00:27]}  Rd4+ {[%clk 0:00:08]} 41. Kh5 {[%clk 0:00:26]}  Kf6 {[%clk 0:00:04]} 42. h4 {[%clk 0:00:24]}  Ne4 {[%clk 0:00:01]} 43. Rxf7+ {[%clk 0:00:23]}  Ke5 {[%clk 0:00:02]} 44. Ba6 {[%clk 0:00:17]}  Ng3+ {[%clk 0:00:02]} 45. Kxh6 {[%clk 0:00:17]}  Rxh4+ {[%clk 0:00:03]} 46. Kg5 {[%clk 0:00:17]}  Ra4 {[%clk 0:00:03]} 47. Bb7 {[%clk 0:00:17]}  Ne2 {[%clk 0:00:02]} 48. g4 {[%clk 0:00:17]}  Nd4 {[%clk 0:00:02]} 49. Re7+ {[%clk 0:00:16]}  Kd6 {[%clk 0:00:02]} 50. Re4 {[%clk 0:00:14]}  Ne6+ {[%clk 0:00:01]} 51. Kf6 {[%clk 0:00:14]} 1-0


[Site "https://www.chess.com"]

[Event "Titled Tuesday Blitz October 19 2021"]
[White "Sydoryka, Vladyslav"]
[Black "Tsydypov, Zhamsaran"]
[WhiteFideId "14145928"]
[BlackFideId "4108566"]
[WhiteElo "2282"]
[BlackElo "2649"]
[Result "1-0"]
[Round "02"]
[TimeControl "180+1"]
[Date "2021.10.19"]
[WhiteClock "0:00:04"]
[BlackClock "0:00:12"]

1. c4 {[%clk 0:03:00]}  Nf6 {[%clk 0:02:58]} 2. g3 {[%clk 0:03:00]}  g6 {[%clk 0:02:58]} 3. Bg2 {[%clk 0:03:01]}  Bg7 {[%clk 0:02:59]} 4. Nc3 {[%clk 0:03:01]}  O-O {[%clk 0:02:59]} 5. d3 {[%clk 0:03:02]}  e5 {[%clk 0:02:57]} 6. Nf3 {[%clk 0:03:02]}  d6 {[%clk 0:02:57]} 7. O-O {[%clk 0:03:03]}  Nc6 {[%clk 0:02:57]} 8. Rb1 {[%clk 0:03:03]}  Nh5 {[%clk 0:02:56]} 9. b4 {[%clk 0:03:01]}  f5 {[%clk 0:02:57]} 10. b5 {[%clk 0:03:01]}  Ne7 {[%clk 0:02:57]} 11. Qc2 {[%clk 0:03:01]}  h6 {[%clk 0:02:56]} 12. Bb2 {[%clk 0:03:01]}  g5 {[%clk 0:02:56]} 13. a4 {[%clk 0:03:01]}  f4 {[%clk 0:02:54]} 14. Nd5 {[%clk 0:03:00]}  Ng6 {[%clk 0:02:52]} 15. Nd2 {[%clk 0:02:57]}  g4 {[%clk 0:02:51]} 16. d4 {[%clk 0:02:50]}  Ne7 {[%clk 0:02:41]} 17. dxe5 {[%clk 0:02:45]}  dxe5 {[%clk 0:02:41]} 18. Ba3 {[%clk 0:02:39]}  Nf5 {[%clk 0:01:59]} 19. Bxf8 {[%clk 0:02:38]}  Bxf8 {[%clk 0:01:51]} 20. Nb3 {[%clk 0:01:49]}  c6 {[%clk 0:01:42]} 21. bxc6 {[%clk 0:01:40]}  bxc6 {[%clk 0:01:42]} 22. Nc3 {[%clk 0:01:36]}  Qf6 {[%clk 0:01:41]} 23. Ne4 {[%clk 0:01:31]}  Qe7 {[%clk 0:01:28]} 24. Rfd1 {[%clk 0:01:18]}  Nhg7 {[%clk 0:01:26]} 25. c5 {[%clk 0:00:59]}  Be6 {[%clk 0:01:24]} 26. Nd6 {[%clk 0:00:59]}  h5 {[%clk 0:01:24]} 27. Nxf5 {[%clk 0:00:57]}  Bxf5 {[%clk 0:01:17]} 28. Be4 {[%clk 0:00:57]}  Be6 {[%clk 0:01:16]} 29. Bxc6 {[%clk 0:00:57]}  Rc8 {[%clk 0:01:16]} 30. Bd5 {[%clk 0:00:55]}  Qf7 {[%clk 0:01:14]} 31. Bxe6 {[%clk 0:00:54]}  Nxe6 {[%clk 0:01:14]} 32. Rbc1 {[%clk 0:00:27]}  Kg7 {[%clk 0:01:05]} 33. c6 {[%clk 0:00:26]}  Ng5 {[%clk 0:00:58]} 34. Rd7 {[%clk 0:00:24]}  Be7 {[%clk 0:00:58]} 35. Qc3 {[%clk 0:00:18]}  Nh3+ {[%clk 0:00:56]} 36. Kg2 {[%clk 0:00:17]}  fxg3 {[%clk 0:00:54]} 37. Qxe5+ {[%clk 0:00:16]}  Kh6 {[%clk 0:00:52]} 38. Qxg3 {[%clk 0:00:15]}  Nf4+ {[%clk 0:00:46]} 39. Kh1 {[%clk 0:00:10]}  Ne6 {[%clk 0:00:20]} 40. Qe3+ {[%clk 0:00:10]}  Kg6 {[%clk 0:00:20]} 41. Nd4 {[%clk 0:00:09]}  Nxd4 {[%clk 0:00:19]} 42. Qxd4 {[%clk 0:00:06]}  Qe6 {[%clk 0:00:19]} 43. Qd3+ {[%clk 0:00:06]}  Kg7 {[%clk 0:00:16]} 44. Qe3 {[%clk 0:00:05]}  Rxc6 {[%clk 0:00:13]} 45. Qxe6 {[%clk 0:00:03]}  Rxe6 {[%clk 0:00:13]} 46. Rcc7 {[%clk 0:00:04]}  Kf6 {[%clk 0:00:13]} 47. e3 {[%clk 0:00:04]}  Bd6 {[%clk 0:00:13]} 48. Rxa7 {[%clk 0:00:03]}  Be5 {[%clk 0:00:13]} 49. Rdb7 {[%clk 0:00:03]}  Rd6 {[%clk 0:00:13]} 50. Kg2 {[%clk 0:00:03]}  h4 {[%clk 0:00:13]} 51. Rb5 {[%clk 0:00:03]}  h3+ {[%clk 0:00:13]} 52. Kf1 {[%clk 0:00:03]}  Bxh2 {[%clk 0:00:13]} 53. Rh7 {[%clk 0:00:03]}  Kg6 {[%clk 0:00:13]} 54. Rh8 {[%clk 0:00:03]}  Rd1+ {[%clk 0:00:13]} 55. Ke2 {[%clk 0:00:03]}  Bd6 {[%clk 0:00:13]} 56. Rb6 {[%clk 0:00:03]}  Kf5 {[%clk 0:00:12]} 57. Kxd1 {[%clk 0:00:02]}  Be5 {[%clk 0:00:11]} 58. Rb5 {[%clk 0:00:03]}  Ke4 {[%clk 0:00:11]} 59. Rxe5+ {[%clk 0:00:03]}  Kxe5 {[%clk 0:00:12]} 60. Ke2 {[%clk 0:00:04]}  Ke4 {[%clk 0:00:12]} 61. Kf1 {[%clk 0:00:04]} 1-0


[Site "https://www.chess.com"]

[Event "Titled Tuesday Blitz October 19 2021"]
[White "Taichman, Ori"]
[Black "Svane, Frederik"]
[WhiteFideId "2804069"]
[BlackFideId "12923044"]
[WhiteElo "2227"]
[BlackElo "2459"]
[Result "1-0"]
[Round "02"]
[TimeControl "180+1"]
[Date "2021.10.19"]
[WhiteClock "0:00:24"]
[BlackClock "0:00:09"]

1. e4 {[%clk 0:02:49]}  c5 {[%clk 0:02:59]} 2. Nf3 {[%clk 0:02:49]}  Nc6 {[%clk 0:02:59]} 3. Bb5 {[%clk 0:02:49]}  g6 {[%clk 0:02:58]} 4. c3 {[%clk 0:02:46]}  Bg7 {[%clk 0:02:55]} 5. d4 {[%clk 0:02:46]}  a6 {[%clk 0:02:46]} 6. Bxc6 {[%clk 0:02:42]}  dxc6 {[%clk 0:02:46]} 7. dxc5 {[%clk 0:02:42]}  Qxd1+ {[%clk 0:02:42]} 8. Kxd1 {[%clk 0:02:43]}  Nf6 {[%clk 0:02:43]} 9. Re1 {[%clk 0:02:40]}  Ng4 {[%clk 0:02:22]} 10. Be3 {[%clk 0:02:35]}  f5 {[%clk 0:02:22]} 11. h3 {[%clk 0:02:05]}  fxe4 {[%clk 0:02:15]} 12. Ng5 {[%clk 0:02:02]}  Nxe3+ {[%clk 0:02:08]} 13. fxe3 {[%clk 0:02:01]}  Bh6 {[%clk 0:01:55]} 14. Nxe4 {[%clk 0:01:59]}  Bf5 {[%clk 0:01:55]} 15. Nbd2 {[%clk 0:01:59]}  O-O-O {[%clk 0:01:55]} 16. Ke2 {[%clk 0:01:59]}  Rd7 {[%clk 0:01:43]} 17. g4 {[%clk 0:01:58]}  Be6 {[%clk 0:01:42]} 18. b3 {[%clk 0:01:57]}  Rhd8 {[%clk 0:01:41]} 19. Rad1 {[%clk 0:01:55]}  Bg7 {[%clk 0:01:06]} 20. Nf3 {[%clk 0:01:25]}  Bd5 {[%clk 0:01:03]} 21. Nfg5 {[%clk 0:01:12]}  h6 {[%clk 0:00:56]} 22. c4 {[%clk 0:01:11]}  hxg5 {[%clk 0:00:14]} 23. cxd5 {[%clk 0:01:10]}  Rxd5 {[%clk 0:00:02]} 24. Rxd5 {[%clk 0:01:10]}  Rxd5 {[%clk 0:00:03]} 25. Rd1 {[%clk 0:01:11]}  Bf6 {[%clk 0:00:01]} 26. Rxd5 {[%clk 0:00:23]}  cxd5 {[%clk 0:00:02]} 27. Nxf6 {[%clk 0:00:24]}  exf6 {[%clk 0:00:03]} 28. Kd3 {[%clk 0:00:24]}  Kd7 {[%clk 0:00:03]} 29. Kd4 {[%clk 0:00:24]}  Ke6 {[%clk 0:00:03]} 30. b4 {[%clk 0:00:22]}  f5 {[%clk 0:00:03]} 31. a4 {[%clk 0:00:20]}  f4 {[%clk 0:00:03]} 32. exf4 {[%clk 0:00:19]}  gxf4 {[%clk 0:00:04]} 33. h4 {[%clk 0:00:17]}  g5 {[%clk 0:00:02]} 34. hxg5 {[%clk 0:00:16]}  Kf7 {[%clk 0:00:01]} 35. b5 {[%clk 0:00:16]}  axb5 {[%clk 0:00:02]} 36. axb5 {[%clk 0:00:17]}  Ke6 {[%clk 0:00:02]} 37. c6 {[%clk 0:00:17]}  bxc6 {[%clk 0:00:03]} 38. bxc6 {[%clk 0:00:18]}  Kd6 {[%clk 0:00:02]} 39. g6 {[%clk 0:00:18]}  Kxc6 {[%clk 0:00:03]} 40. g7 {[%clk 0:00:19]}  f3 {[%clk 0:00:04]} 41. g8=Q {[%clk 0:00:19]}  f2 {[%clk 0:00:05]} 42. Qxd5+ {[%clk 0:00:20]}  Kc7 {[%clk 0:00:05]} 43. Qf5 {[%clk 0:00:20]}  Kb6 {[%clk 0:00:05]} 44. Qxf2 {[%clk 0:00:21]}  Kb7 {[%clk 0:00:06]} 45. Qc2 {[%clk 0:00:21]}  Kb6 {[%clk 0:00:07]} 46. Qc5+ {[%clk 0:00:22]}  Ka6 {[%clk 0:00:07]} 47. g5 {[%clk 0:00:22]}  Kb7 {[%clk 0:00:08]} 48. g6 {[%clk 0:00:22]}  Ka8 {[%clk 0:00:07]} 49. Qb5 {[%clk 0:00:22]}  Ka7 {[%clk 0:00:07]} 50. g7 {[%clk 0:00:23]}  Ka8 {[%clk 0:00:08]} 51. g8=Q+ {[%clk 0:00:23]}  Ka7 {[%clk 0:00:09]} 52. Qgb8# {[%clk 0:00:24]} 1-0


[Site "https://www.chess.com"]

[Event "Titled Tuesday Blitz October 19 2021"]
[White "Tregubov, Pavel V."]
[Black "Tang, Andrew"]
[WhiteFideId "4115341"]
[BlackFideId "2059630"]
[WhiteElo "2423"]
[BlackElo "2588"]
[Result "0-1"]
[Round "02"]
[TimeControl "180+1"]
[Date "2021.10.19"]
[WhiteClock "0:00:36"]
[BlackClock "0:00:57"]

1. e4 {[%clk 0:03:00]}  e5 {[%clk 0:02:47]} 2. Nf3 {[%clk 0:03:00]}  Nc6 {[%clk 0:02:46]} 3. Bb5 {[%clk 0:03:00]}  g6 {[%clk 0:02:47]} 4. d4 {[%clk 0:03:00]}  exd4 {[%clk 0:02:46]} 5. Bg5 {[%clk 0:03:00]}  Be7 {[%clk 0:02:47]} 6. Bxe7 {[%clk 0:02:59]}  Qxe7 {[%clk 0:02:47]} 7. O-O {[%clk 0:02:59]}  Qb4 {[%clk 0:02:46]} 8. Bxc6 {[%clk 0:02:44]}  dxc6 {[%clk 0:02:46]} 9. Qxd4 {[%clk 0:02:40]}  Qxd4 {[%clk 0:02:46]} 10. Nxd4 {[%clk 0:02:40]}  Bd7 {[%clk 0:02:45]} 11. Nd2 {[%clk 0:02:38]}  O-O-O {[%clk 0:02:41]} 12. N2f3 {[%clk 0:02:38]}  Ne7 {[%clk 0:02:36]} 13. Rad1 {[%clk 0:02:36]}  c5 {[%clk 0:02:35]} 14. Ne2 {[%clk 0:02:33]}  Bg4 {[%clk 0:02:16]} 15. Nc3 {[%clk 0:02:20]}  Bxf3 {[%clk 0:02:04]} 16. gxf3 {[%clk 0:02:20]}  Nc6 {[%clk 0:02:04]} 17. Nd5 {[%clk 0:01:55]}  Nd4 {[%clk 0:02:04]} 18. Kg2 {[%clk 0:01:55]}  Nxc2 {[%clk 0:01:22]} 19. Rc1 {[%clk 0:01:39]}  Nb4 {[%clk 0:01:20]} 20. Rxc5 {[%clk 0:01:25]}  Nxd5 {[%clk 0:01:20]} 21. Rxd5 {[%clk 0:01:15]}  Rxd5 {[%clk 0:01:19]} 22. exd5 {[%clk 0:01:16]}  Rd8 {[%clk 0:01:20]} 23. Rd1 {[%clk 0:01:16]}  c6 {[%clk 0:01:18]} 24. d6 {[%clk 0:01:10]}  Kd7 {[%clk 0:01:18]} 25. f4 {[%clk 0:00:51]}  Re8 {[%clk 0:01:18]} 26. Kf3 {[%clk 0:00:51]}  Re6 {[%clk 0:01:16]} 27. Rd3 {[%clk 0:00:50]}  Rxd6 {[%clk 0:01:16]} 28. Rb3 {[%clk 0:00:49]}  b6 {[%clk 0:01:16]} 29. Ra3 {[%clk 0:00:48]}  a5 {[%clk 0:01:16]} 30. Rb3 {[%clk 0:00:49]}  b5 {[%clk 0:01:13]} 31. a4 {[%clk 0:00:42]}  b4 {[%clk 0:01:12]} 32. Re3 {[%clk 0:00:41]}  f6 {[%clk 0:01:13]} 33. f5 {[%clk 0:00:39]}  g5 {[%clk 0:01:05]} 34. Kg4 {[%clk 0:00:38]}  Rd4+ {[%clk 0:01:03]} 35. Kg3 {[%clk 0:00:38]}  Rf4 {[%clk 0:01:03]} 36. Rd3+ {[%clk 0:00:36]}  Kc7 {[%clk 0:01:03]} 37. Re3 {[%clk 0:00:37]}  h5 {[%clk 0:01:03]} 38. Re6 {[%clk 0:00:36]}  Rxf5 {[%clk 0:01:03]} 39. h4 {[%clk 0:00:36]}  gxh4+ {[%clk 0:00:57]} 0-1


[Site "https://www.chess.com"]

[Event "Titled Tuesday Blitz October 19 2021"]
[White "Vallejo Diaz, Javier"]
[Black "Kollars, Dmitrij"]
[WhiteFideId "2256398"]
[BlackFideId "12909572"]
[WhiteElo "2596"]
[BlackElo "2584"]
[Result "0-1"]
[Round "02"]
[TimeControl "180+1"]
[Date "2021.10.19"]
[WhiteClock "0:00:05"]
[BlackClock "0:00:31"]

1. e4 {[%clk 0:03:00]}  e6 {[%clk 0:02:56]} 2. d4 {[%clk 0:03:00]}  d5 {[%clk 0:02:56]} 3. Nd2 {[%clk 0:03:00]}  c5 {[%clk 0:02:56]} 4. exd5 {[%clk 0:03:00]}  Qxd5 {[%clk 0:02:55]} 5. Ngf3 {[%clk 0:02:58]}  cxd4 {[%clk 0:02:55]} 6. Bc4 {[%clk 0:02:59]}  Qd7 {[%clk 0:02:52]} 7. O-O {[%clk 0:02:57]}  Nc6 {[%clk 0:02:52]} 8. Nb3 {[%clk 0:02:57]}  a6 {[%clk 0:02:52]} 9. a4 {[%clk 0:02:49]}  Nf6 {[%clk 0:02:43]} 10. Nbxd4 {[%clk 0:02:45]}  Nxd4 {[%clk 0:02:43]} 11. Nxd4 {[%clk 0:02:45]}  Qc7 {[%clk 0:02:40]} 12. Qe2 {[%clk 0:02:42]}  Bd6 {[%clk 0:02:30]} 13. h3 {[%clk 0:02:41]}  O-O {[%clk 0:02:30]} 14. Bg5 {[%clk 0:02:37]}  Bh2+ {[%clk 0:02:07]} 15. Kh1 {[%clk 0:02:35]}  Be5 {[%clk 0:01:53]} 16. c3 {[%clk 0:02:15]}  h6 {[%clk 0:01:53]} 17. Be3 {[%clk 0:02:00]}  Bf4 {[%clk 0:01:45]} 18. Bxf4 {[%clk 0:01:45]}  Qxf4 {[%clk 0:01:46]} 19. Nf3 {[%clk 0:01:35]}  Bd7 {[%clk 0:01:43]} 20. Ne5 {[%clk 0:01:32]}  Rad8 {[%clk 0:01:39]} 21. a5 {[%clk 0:01:18]}  Ne4 {[%clk 0:01:37]} 22. Nf3 {[%clk 0:00:41]}  Bc6 {[%clk 0:01:31]} 23. Rad1 {[%clk 0:00:40]}  Rxd1 {[%clk 0:01:18]} 24. Rxd1 {[%clk 0:00:39]}  Nxf2+ {[%clk 0:01:16]} 25. Qxf2 {[%clk 0:00:37]}  Qxc4 {[%clk 0:01:17]} 26. Ne5 {[%clk 0:00:33]}  Qb5 {[%clk 0:01:16]} 27. Nxc6 {[%clk 0:00:31]}  Qxc6 {[%clk 0:01:17]} 28. Qd4 {[%clk 0:00:25]}  Rc8 {[%clk 0:01:13]} 29. Qb4 {[%clk 0:00:19]}  Qc7 {[%clk 0:01:02]} 30. Rd6 {[%clk 0:00:18]}  h5 {[%clk 0:00:59]} 31. Qd4 {[%clk 0:00:17]}  Qxa5 {[%clk 0:00:57]} 32. Rd7 {[%clk 0:00:18]}  Qb5 {[%clk 0:00:54]} 33. b4 {[%clk 0:00:12]}  Qc6 {[%clk 0:00:46]} 34. Rd6 {[%clk 0:00:10]}  Qxc3 {[%clk 0:00:41]} 35. Rd8+ {[%clk 0:00:10]}  Kh7 {[%clk 0:00:42]} 36. Qe4+ {[%clk 0:00:10]}  g6 {[%clk 0:00:42]} 37. Rd7 {[%clk 0:00:10]}  Qf6 {[%clk 0:00:36]} 38. Rxb7 {[%clk 0:00:10]}  h4 {[%clk 0:00:33]} 39. Ra7 {[%clk 0:00:07]}  Rc1+ {[%clk 0:00:31]} 40. Kh2 {[%clk 0:00:07]}  Ra1 {[%clk 0:00:32]} 41. b5 {[%clk 0:00:04]}  axb5 {[%clk 0:00:32]} 42. Rxa1 {[%clk 0:00:04]}  Qxa1 {[%clk 0:00:33]} 43. Qxh4+ {[%clk 0:00:04]}  Kg7 {[%clk 0:00:33]} 44. Qe4 {[%clk 0:00:04]}  Qc3 {[%clk 0:00:33]} 45. Qb7 {[%clk 0:00:04]}  b4 {[%clk 0:00:33]} 46. h4 {[%clk 0:00:05]}  b3 {[%clk 0:00:33]} 47. Qb5 {[%clk 0:00:06]}  b2 {[%clk 0:00:32]} 48. g3 {[%clk 0:00:05]}  Qc2+ {[%clk 0:00:31]} 49. Kh3 {[%clk 0:00:05]}  Qf5+ {[%clk 0:00:31]} 50. Qxf5 {[%clk 0:00:05]}  gxf5 {[%clk 0:00:31]} 0-1


[Site "https://www.chess.com"]